fUSD/lending_fUSD_20260629
["ID","MTS","AMOUNT","RATE_DAILY","PERIOD"]
[426694109,1782748243000,-178.71008064,0.000299,10]
[426694108,1782748243000,-179.71008064,0.000299,10]
[426694110,1782748243000,-249.76886186,0.000299,2]
[426694119,1782748243000,-249.76886183,0.000299,2]
[426694104,1782748243000,-179.71008064,0.000299,10]
[426694105,1782748243000,-179.71008064,0.000299,10]
[426694182,1782748244000,-500.0,0.00030136,2]
[426694176,1782748244000,-500.0,0.00030136,2]
[426694172,1782748244000,-402.18706998,0.00030136,2]
[426694181,1782748244000,-500.0,0.00030136,2]
[426694183,1782748244000,-500.0,0.00030136,15]
[426694184,1782748244000,-500.0,0.00030136,15]
[426694189,1782748244000,-500.0,0.00030136,15]
[426694186,1782748244000,-500.0,0.00030136,15]
[426694192,1782748244000,-574.24997663,0.00030136,15]
[426694171,1782748244000,-502.7070817,0.00030136,2]
[426694177,1782748244000,-500.0,0.00030136,2]
[426694190,1782748244000,-500.0,0.00030136,15]
[426694185,1782748244000,-500.0,0.00030136,15]
[426694187,1782748244000,-500.0,0.00030136,15]
[426694188,1782748244000,-500.0,0.00030136,15]
[426694191,1782748244000,-500.0,0.00030136,15]
[426694194,1782748244000,-316.12606361,0.00030137,2]
[426694196,1782748244000,-436.96599853,0.00030137,2]
[426694195,1782748244000,-218.48299926,0.00030137,2]
[426694197,1782748244000,-1831.97928048,0.00030137,2]
[426694198,1782748244000,-161.0,0.0003016,2]
[426694175,1782748244000,-500.0,0.00030136,2]
[426694200,1782748244000,-271.0,0.0003016,2]
[426694193,1782748244000,-158.0630318,0.00030137,2]
[426694173,1782748244000,-500.0,0.00030136,2]
[426694160,1782748244000,-1000.13,0.00030136,2]
[426694170,1782748244000,-500.0,0.00030136,2]
[426694201,1782748244000,-239.44889707,0.0003016,2]
[426694152,1782748244000,-1000.13,0.00030136,2]
[426694153,1782748244000,-1000.13,0.00030136,2]
[426694151,1782748244000,-1000.13,0.00030136,2]
[426694150,1782748244000,-1000.13,0.00030136,2]
[426694154,1782748244000,-1000.13,0.00030136,2]
[426694158,1782748244000,-1000.13,0.00030136,2]
[426694165,1782748244000,-1000.13,0.00030136,2]
[426694156,1782748244000,-1000.13,0.00030136,2]
[426694166,1782748244000,-1000.13,0.00030136,2]
[426694163,1782748244000,-1000.13,0.00030136,2]
[426694164,1782748244000,-1000.13,0.00030136,2]
[426694157,1782748244000,-1000.13,0.00030136,2]
[426694159,1782748244000,-1000.13,0.00030136,2]
[426694161,1782748244000,-1000.13,0.00030136,2]
[426694162,1782748244000,-1000.13,0.00030136,2]
[426694155,1782748244000,-1000.13,0.00030136,2]
[426694168,1782748244000,-1000.13,0.00030136,2]
[426694178,1782748244000,-500.0,0.00030136,2]
[426694169,1782748244000,-1000.19777974,0.00030136,2]
[426694167,1782748244000,-1000.13,0.00030136,2]
[426694179,1782748244000,-500.0,0.00030136,2]
[426694180,1782748244000,-500.0,0.00030136,2]
[426694174,1782748244000,-500.0,0.00030136,2]
[426694202,1782748244000,-239.44889707,0.0003016,2]
[426694203,1782748244000,-249.76886183,0.00030196,2]
[426694242,1782748244000,-588.0,0.00030741,30]
[426694232,1782748244000,-277.47767238,0.00030727,2]
[426694233,1782748244000,-240.0,0.00030736,30]
[426694235,1782748244000,-158.0,0.00030736,30]
[426694228,1782748244000,-251.0,0.0003069,2]
[426694237,1782748244000,-611.0,0.00030736,30]
[426694239,1782748244000,-159.0,0.00030738,30]
[426694238,1782748244000,-155.0,0.00030738,30]
[426694240,1782748244000,-153.0,0.00030741,30]
[426694244,1782748244000,-154.0,0.00030741,30]
[426694243,1782748244000,-160.0,0.00030741,30]
[426694241,1782748244000,-157.0,0.00030741,30]
[426694245,1782748244000,-415.34,0.00030763,30]
[426694246,1782748244000,-502.0,0.00030781,14]
[426694247,1782748244000,-211.97404073,0.0003084,2]
[426694248,1782748244000,-150.0,0.00030841,2]
[426694249,1782748244000,-319.57,0.00030865,120]
[426694253,1782748244000,-997.24392002,0.00030938,2]
[426694251,1782748244000,-1580.07,0.000309,7]
[426694250,1782748244000,-333.83,0.00030865,120]
[426694255,1782748244000,-10334.58311308,0.00031,2]
[426694254,1782748244000,-1000.0,0.00031,7]
[426694199,1782748244000,-840.0,0.0003016,2]
[426694252,1782748244000,-1859.14,0.000309,7]
[426694234,1782748244000,-197.0,0.00030736,30]
[426694231,1782748244000,-1259.33353303,0.000307,2]
[426694236,1782748244000,-154.0,0.00030736,30]
[426694229,1782748244000,-10334.58311308,0.000307,2]
[426694208,1782748244000,-305.11921922,0.0003036,2]
[426694210,1782748244000,-251.0,0.0003036,2]
[426694209,1782748244000,-251.0,0.0003036,2]
[426694206,1782748244000,-313.63636363,0.00030208,2]
[426694204,1782748244000,-437.37,0.000302,7]
[426694205,1782748244000,-163.89099936,0.000302,2]
[426694214,1782748244000,-1259.33353303,0.000304,2]
[426694230,1782748244000,-1094.57677152,0.000307,2]
[426694212,1782748244000,-10334.58311308,0.000304,2]
[426694211,1782748244000,-251.0,0.0003036,2]
[426694213,1782748244000,-1094.57677152,0.000304,2]
[426694215,1782748244000,-815.8,0.00030498,120]
[426694216,1782748244000,-3187.0404045,0.00030556,2]
[426694207,1782748244000,-151.09934801,0.00030344,2]
[426694226,1782748244000,-251.0,0.0003069,2]
[426694217,1782748244000,-500.0,0.00030574,20]
[426694221,1782748244000,-251.0,0.0003069,2]
[426694220,1782748244000,-151.09934801,0.0003068,2]
[426694218,1782748244000,-15850.9632588,0.00030581,2]
[426694219,1782748244000,-7574.93855739,0.00030581,2]
[426694224,1782748244000,-251.0,0.0003069,2]
[426694225,1782748244000,-251.0,0.0003069,2]
[426694223,1782748244000,-251.0,0.0003069,2]
[426694222,1782748244000,-251.0,0.0003069,2]
[426694227,1782748244000,-251.0,0.0003069,2]
[426694296,1782748245000,-155.0,0.00031738,30]
[426694295,1782748245000,-611.0,0.00031736,30]
[426694292,1782748245000,-197.0,0.00031736,30]
[426694291,1782748245000,-240.0,0.00031736,30]
[426694293,1782748245000,-158.0,0.00031736,30]
[426694288,1782748245000,-10334.58311308,0.000317,2]
[426694294,1782748245000,-154.0,0.00031736,30]
[426694289,1782748245000,-233.20134942,0.0003172,2]
[426694287,1782748245000,-151.09934801,0.00031688,2]
[426694286,1782748245000,-333.83,0.00031687,120]
[426694297,1782748245000,-159.0,0.00031738,30]
[426694290,1782748245000,-277.47767238,0.00031727,2]
[426694300,1782748245000,-588.0,0.00031741,30]
[426694320,1782748245000,-150.0,0.00031956,30]
[426694307,1782748245000,-150.0,0.00031956,30]
[426694301,1782748245000,-160.0,0.00031741,30]
[426694299,1782748245000,-157.0,0.00031741,30]
[426694303,1782748245000,-502.0,0.00031766,15]
[426694302,1782748245000,-154.0,0.00031741,30]
[426694304,1782748245000,-203.98,0.00031853,3]
[426694298,1782748245000,-153.0,0.00031741,30]
[426694306,1782748245000,-150.0,0.00031956,30]
[426694305,1782748245000,-151.14744993,0.00031956,30]
[426694310,1782748245000,-150.0,0.00031956,30]
[426694321,1782748245000,-7921.3566,0.00032,2]
[426694282,1782748245000,-1094.57677152,0.000314,2]
[426694308,1782748245000,-151.14861335,0.00031956,30]
[426694276,1782748245000,-251.0,0.0003135,2]
[426694257,1782748245000,-1259.33353303,0.00031,2]
[426694279,1782748245000,-685.34,0.00031366,60]
[426694260,1782748245000,-251.0,0.0003102,2]
[426694261,1782748245000,-251.0,0.0003102,2]
[426694258,1782748245000,-160.0,0.00031,120]
[426694259,1782748245000,-151.09934801,0.00031016,2]
[426694256,1782748245000,-1094.57677152,0.00031,2]
[426694262,1782748245000,-251.0,0.0003102,2]
[426694272,1782748245000,-251.0,0.0003135,2]
[426694263,1782748245000,-251.0,0.0003102,2]
[426694273,1782748245000,-251.0,0.0003135,2]
[426694264,1782748245000,-251.0,0.0003102,2]
[426694265,1782748245000,-251.0,0.0003102,2]
[426694266,1782748245000,-251.0,0.0003102,2]
[426694267,1782748245000,-1291.29137487,0.00031082,2]
[426694269,1782748245000,-1282.59605284,0.00031084,2]
[426694268,1782748245000,-1391.00131393,0.00031084,2]
[426694270,1782748245000,-1285.39717052,0.00031084,2]
[426694271,1782748245000,-249.76886183,0.00031174,2]
[426694274,1782748245000,-251.0,0.0003135,2]
[426694275,1782748245000,-251.0,0.0003135,2]
[426694284,1782748245000,-2000.0,0.00031458,7]
[426694285,1782748245000,-500.0,0.00031491,22]
[426694278,1782748245000,-542.03955457,0.00031365,2]
[426694281,1782748245000,-10334.58311308,0.000314,2]
[426694280,1782748245000,-437.37,0.000314,7]
[426694283,1782748245000,-1259.33353303,0.000314,2]
[426694277,1782748245000,-151.09934801,0.00031352,2]
[426694323,1782748245000,-216.58458871,0.00032,7]
[426694368,1782748245000,-150.0,0.00032745,30]
[426694311,1782748245000,-150.0,0.00031956,30]
[426694348,1782748245000,-1580.07,0.000326,7]
[426694356,1782748245000,-240.0,0.00032736,30]
[426694349,1782748245000,-10334.58311308,0.000326,2]
[426694347,1782748245000,-150.0,0.00032548,30]
[426694357,1782748245000,-197.0,0.00032736,30]
[426694354,1782748245000,-151.09934801,0.00032697,2]
[426694353,1782748245000,-1781.35856451,0.00032691,2]
[426694351,1782748245000,-150.0,0.00032666,30]
[426694355,1782748245000,-184.98511492,0.00032727,7]
[426694352,1782748245000,-352.64707502,0.00032691,2]
[426694365,1782748245000,-588.0,0.00032741,30]
[426694369,1782748245000,-150.0,0.00032745,30]
[426694350,1782748245000,-150.0,0.00032647,30]
[426694358,1782748245000,-158.0,0.00032736,30]
[426694364,1782748245000,-157.0,0.00032741,30]
[426694367,1782748245000,-154.0,0.00032741,30]
[426694359,1782748245000,-164.0,0.00032736,30]
[426694360,1782748245000,-611.0,0.00032736,30]
[426694366,1782748245000,-160.0,0.00032741,30]
[426694362,1782748245000,-159.0,0.00032738,30]
[426694370,1782748245000,-502.0,0.0003275,16]
[426694371,1782748245000,-150.0,0.00032844,30]
[426694373,1782748245000,-150.0,0.00032844,30]
[426694372,1782748245000,-150.0,0.00032844,30]
[426694374,1782748245000,-210.9,0.00032851,3]
[426694322,1782748245000,-10334.58311308,0.00032,2]
[426694361,1782748245000,-155.0,0.00032738,30]
[426694342,1782748245000,-500.0,0.00032436,24]
[426694363,1782748245000,-153.0,0.00032741,30]
[426694345,1782748245000,-333.83,0.00032508,120]
[426694309,1782748245000,-150.0,0.00031956,30]
[426694344,1782748245000,-150.0,0.00032463,30]
[426694314,1782748245000,-283.83603472,0.00031956,30]
[426694316,1782748245000,-150.0,0.00031956,30]
[426694313,1782748245000,-150.0,0.00031956,30]
[426694318,1782748245000,-151.13233997,0.00031956,30]
[426694319,1782748245000,-150.0,0.00031956,30]
[426694324,1782748245000,-210.17337666,0.00032024,2]
[426694326,1782748245000,-150.0,0.00032055,30]
[426694325,1782748245000,-151.09934801,0.00032024,2]
[426694333,1782748245000,-150.0,0.00032252,30]
[426694330,1782748245000,-1510.23,0.00032232,7]
[426694329,1782748245000,-1859.14,0.000322,7]
[426694327,1782748245000,-249.76886183,0.00032152,2]
[426694343,1782748245000,-150.0,0.00032449,30]
[426694331,1782748245000,-460.04,0.00032232,7]
[426694334,1782748245000,-150.0,0.00032252,30]
[426694332,1782748245000,-13798.21,0.00032232,7]
[426694336,1782748245000,-150.0,0.00032351,30]
[426694335,1782748245000,-10334.58311308,0.000323,2]
[426694346,1782748245000,-150.0,0.00032548,30]
[426694338,1782748245000,-151.09934801,0.0003236,2]
[426694339,1782748245000,-150.0,0.00032383,2]
[426694341,1782748245000,-437.37,0.000324,7]
[426694328,1782748245000,-150.0,0.00032153,30]
[426694337,1782748245000,-150.0,0.00032351,30]
[426694340,1782748245000,-150.0,0.000324,30]
[426694417,1782748246000,-500.0,0.00033,20]
[426694415,1782748246000,-500.0,0.00033,20]
[426694418,1782748246000,-500.0,0.00033,20]
[426694414,1782748246000,-500.0,0.00033,20]
[426694411,1782748246000,-500.0,0.00033,20]
[426694412,1782748246000,-500.0,0.00033,20]
[426694407,1782748246000,-500.0,0.00033,20]
[426694413,1782748246000,-500.0,0.00033,20]
[426694410,1782748246000,-500.0,0.00033,20]
[426694409,1782748246000,-500.0,0.00033,20]
[426694419,1782748246000,-500.0,0.00033,20]
[426694416,1782748246000,-500.0,0.00033,20]
[426694423,1782748246000,-500.0,0.00033,20]
[426694433,1782748246000,-500.0,0.00033,20]
[426694421,1782748246000,-500.0,0.00033,20]
[426694422,1782748246000,-500.0,0.00033,20]
[426694444,1782748246000,-500.0,0.00033,20]
[426694424,1782748246000,-500.0,0.00033,20]
[426694431,1782748246000,-500.0,0.00033,20]
[426694429,1782748246000,-500.0,0.00033,20]
[426694427,1782748246000,-500.0,0.00033,20]
[426694420,1782748246000,-500.0,0.00033,20]
[426694425,1782748246000,-500.0,0.00033,20]
[426694430,1782748246000,-500.0,0.00033,20]
[426694426,1782748246000,-500.0,0.00033,20]
[426694438,1782748246000,-500.0,0.00033,20]
[426694408,1782748246000,-500.0,0.00033,20]
[426694428,1782748246000,-500.0,0.00033,20]
[426694403,1782748246000,-500.0,0.00033,20]
[426694377,1782748246000,-500.0,0.00032877,2]
[426694405,1782748246000,-500.0,0.00033,20]
[426694375,1782748246000,-500.0,0.00032876,14]
[426694376,1782748246000,-500.0,0.00032877,2]
[426694378,1782748246000,-150.0,0.00032942,30]
[426694379,1782748246000,-150.0,0.00032971,30]
[426694380,1782748246000,-500.0,0.00033,20]
[426694382,1782748246000,-500.0,0.00033,20]
[426694385,1782748246000,-500.0,0.00033,20]
[426694383,1782748246000,-500.0,0.00033,20]
[426694393,1782748246000,-500.0,0.00033,20]
[426694392,1782748246000,-500.0,0.00033,20]
[426694384,1782748246000,-500.0,0.00033,20]
[426694381,1782748246000,-500.0,0.00033,20]
[426694386,1782748246000,-500.0,0.00033,20]
[426694406,1782748246000,-500.0,0.00033,20]
[426694388,1782748246000,-500.0,0.00033,20]
[426694391,1782748246000,-500.0,0.00033,20]
[426694389,1782748246000,-500.0,0.00033,20]
[426694390,1782748246000,-500.0,0.00033,20]
[426694396,1782748246000,-500.0,0.00033,20]
[426694397,1782748246000,-500.0,0.00033,20]
[426694394,1782748246000,-500.0,0.00033,20]
[426694398,1782748246000,-500.0,0.00033,20]
[426694395,1782748246000,-500.0,0.00033,20]
[426694399,1782748246000,-500.0,0.00033,20]
[426694401,1782748246000,-500.0,0.00033,20]
[426694402,1782748246000,-500.0,0.00033,20]
[426694400,1782748246000,-500.0,0.00033,20]
[426694404,1782748246000,-500.0,0.00033,20]
[426694387,1782748246000,-500.0,0.00033,20]
[426694432,1782748246000,-500.0,0.00033,20]
[426694450,1782748246000,-176.0,0.00033002,3]
[426694442,1782748246000,-500.0,0.00033,20]
[426694473,1782748246000,-150.0,0.00033478,30]
[426694477,1782748246000,-150.0,0.00033534,30]
[426694476,1782748246000,-910.81,0.00033518,2]
[426694474,1782748246000,-1859.14,0.000335,30]
[426694475,1782748246000,-437.37,0.000335,7]
[426694482,1782748246000,-1195.58,0.00033575,30]
[426694480,1782748246000,-2000.0,0.0003357,2]
[426694479,1782748246000,-1195.58,0.0003355,30]
[426694478,1782748246000,-150.0,0.00033534,30]
[426694481,1782748246000,-33336.8515,0.0003357,2]
[426694483,1782748246000,-166.0,0.00033577,7]
[426694484,1782748246000,-401.448,0.0003358,7]
[426694487,1782748246000,-1195.58,0.000336,30]
[426694471,1782748246000,-194.73755084,0.00033461,2]
[426694486,1782748246000,-10334.58311308,0.000336,2]
[426694490,1782748246000,-65502.75413252,0.0003366,2]
[426694488,1782748246000,-150.0,0.00033633,30]
[426694485,1782748246000,-2000.0,0.00033594,7]
[426694489,1782748246000,-910.81,0.00033643,2]
[426694493,1782748246000,-1000.0,0.00033661,2]
[426694491,1782748246000,-308.55755212,0.0003366,2]
[426694495,1782748246000,-1000.0,0.00033667,2]
[426694494,1782748246000,-1883.96,0.00033661,2]
[426694496,1782748246000,-1000.0,0.00033667,2]
[426694497,1782748246000,-1000.0,0.00033667,2]
[426694500,1782748246000,-2280.56935788,0.00033667,7]
[426694499,1782748246000,-1825.93,0.00033667,2]
[426694440,1782748246000,-500.0,0.00033,20]
[426694492,1782748246000,-1000.0,0.00033661,2]
[426694466,1782748246000,-151.09934801,0.00033369,2]
[426694498,1782748246000,-1000.0,0.00033667,2]
[426694465,1782748246000,-150.0,0.00033337,30]
[426694462,1782748246000,-150.0,0.00033288,30]
[426694439,1782748246000,-500.0,0.00033,20]
[426694441,1782748246000,-500.0,0.00033,20]
[426694443,1782748246000,-500.0,0.00033,20]
[426694435,1782748246000,-500.0,0.00033,20]
[426694434,1782748246000,-500.0,0.00033,20]
[426694437,1782748246000,-500.0,0.00033,20]
[426694445,1782748246000,-500.0,0.00033,20]
[426694448,1782748246000,-440.05,0.00033,20]
[426694447,1782748246000,-500.0,0.00033,20]
[426694454,1782748246000,-546.0,0.00033031,3]
[426694446,1782748246000,-500.0,0.00033,20]
[426694451,1782748246000,-15850.9632588,0.00033011,2]
[426694449,1782748246000,-10334.58311308,0.00033,2]
[426694436,1782748246000,-500.0,0.00033,20]
[426694453,1782748246000,-915.69,0.00033012,7]
[426694452,1782748246000,-7574.93855739,0.00033011,2]
[426694463,1782748246000,-10334.58311308,0.000333,2]
[426694459,1782748246000,-150.0,0.0003314,30]
[426694469,1782748246000,-150.0,0.00033436,30]
[426694458,1782748246000,-150.0,0.0003314,30]
[426694461,1782748246000,-150.0,0.00033238,30]
[426694460,1782748246000,-150.0,0.0003314,30]
[426694455,1782748246000,-151.09934801,0.00033033,2]
[426694457,1782748246000,-174.16009531,0.00033049,2]
[426694456,1782748246000,-150.0,0.00033041,30]
[426694464,1782748246000,-333.83,0.0003333,120]
[426694467,1782748246000,-150.0,0.00033376,30]
[426694468,1782748246000,-150.0,0.00033436,30]
[426694543,1782748247000,-300.0,0.0003376,2]
[426694529,1782748247000,-300.0,0.0003376,2]
[426694531,1782748247000,-375.25201041,0.0003376,2]
[426694532,1782748247000,-1101.0618519,0.0003376,2]
[426694537,1782748247000,-300.0,0.0003376,2]
[426694540,1782748247000,-300.0,0.0003376,2]
[426694539,1782748247000,-300.0,0.0003376,2]
[426694541,1782748247000,-300.0,0.0003376,2]
[426694547,1782748247000,-300.0,0.0003376,2]
[426694528,1782748247000,-300.0,0.0003376,2]
[426694530,1782748247000,-300.0,0.0003376,2]
[426694548,1782748247000,-300.0,0.0003376,2]
[426694545,1782748247000,-495.28773916,0.0003376,2]
[426694542,1782748247000,-300.0,0.0003376,2]
[426694538,1782748247000,-300.0,0.0003376,2]
[426694544,1782748247000,-300.0,0.0003376,2]
[426694549,1782748247000,-300.0,0.0003376,2]
[426694551,1782748247000,-300.0,0.0003376,2]
[426694550,1782748247000,-607.84242655,0.0003376,2]
[426694554,1782748247000,-300.0,0.0003376,2]
[426694552,1782748247000,-300.0,0.0003376,2]
[426694533,1782748247000,-300.0,0.0003376,2]
[426694553,1782748247000,-300.0,0.0003376,2]
[426694546,1782748247000,-300.0,0.0003376,2]
[426694526,1782748247000,-154.0,0.00033741,30]
[426694514,1782748247000,-158.71,0.00033734,120]
[426694523,1782748247000,-157.0,0.00033741,30]
[426694557,1782748247000,-300.0,0.0003376,2]
[426694508,1782748247000,-150.0,0.00033732,30]
[426694507,1782748247000,-184.98511492,0.00033727,7]
[426694506,1782748247000,-250.0,0.00033727,7]
[426694505,1782748247000,-1737.06,0.00033727,7]
[426694503,1782748247000,-151.09934801,0.00033705,2]
[426694501,1782748247000,-80001.0,0.0003367,30]
[426694502,1782748247000,-915.69,0.00033697,7]
[426694504,1782748247000,-155.46756628,0.0003372,7]
[426694510,1782748247000,-150.0,0.00033732,30]
[426694511,1782748247000,-150.0,0.00033732,30]
[426694535,1782748247000,-300.0,0.0003376,2]
[426694516,1782748247000,-197.0,0.00033736,30]
[426694520,1782748247000,-162.40577252,0.00033738,30]
[426694512,1782748247000,-2442.0,0.00033734,10]
[426694515,1782748247000,-240.0,0.00033736,30]
[426694517,1782748247000,-158.0,0.00033736,30]
[426694521,1782748247000,-159.0,0.00033738,30]
[426694522,1782748247000,-153.0,0.00033741,30]
[426694513,1782748247000,-502.0,0.00033734,17]
[426694534,1782748247000,-300.0,0.0003376,2]
[426694524,1782748247000,-588.0,0.00033741,30]
[426694536,1782748247000,-300.0,0.0003376,2]
[426694525,1782748247000,-160.59292995,0.00033741,30]
[426694518,1782748247000,-611.0,0.00033736,30]
[426694556,1782748247000,-536.77715252,0.0003376,2]
[426694509,1782748247000,-150.0,0.00033732,30]
[426694555,1782748247000,-300.0,0.0003376,2]
[426694587,1782748247000,-300.0,0.0003376,2]
[426694592,1782748247000,-513.95923093,0.0003376,2]
[426694590,1782748247000,-300.0,0.0003376,2]
[426694589,1782748247000,-300.0,0.0003376,2]
[426694586,1782748247000,-300.0,0.0003376,2]
[426694591,1782748247000,-300.0,0.0003376,2]
[426694588,1782748247000,-300.0,0.0003376,2]
[426694584,1782748247000,-300.0,0.0003376,2]
[426694594,1782748247000,-584.66801755,0.0003376,2]
[426694593,1782748247000,-300.0,0.0003376,2]
[426694597,1782748247000,-300.0,0.0003376,2]
[426694596,1782748247000,-454.26701287,0.0003376,2]
[426694601,1782748247000,-300.0,0.0003376,2]
[426694600,1782748247000,-300.0,0.0003376,2]
[426694602,1782748247000,-300.0,0.0003376,2]
[426694598,1782748247000,-300.0,0.0003376,2]
[426694605,1782748247000,-300.0,0.0003376,2]
[426694606,1782748247000,-300.0,0.0003376,2]
[426694608,1782748247000,-300.0,0.0003376,2]
[426694609,1782748247000,-1101.0618519,0.0003376,2]
[426694604,1782748247000,-300.0,0.0003376,2]
[426694603,1782748247000,-446.09705538,0.0003376,2]
[426694610,1782748247000,-300.0,0.0003376,2]
[426694558,1782748247000,-300.0,0.0003376,2]
[426694607,1782748247000,-300.0,0.0003376,2]
[426694585,1782748247000,-569.01654071,0.0003376,2]
[426694599,1782748247000,-300.0,0.0003376,2]
[426694576,1782748247000,-300.0,0.0003376,2]
[426694559,1782748247000,-730.12015411,0.0003376,2]
[426694595,1782748247000,-300.0,0.0003376,2]
[426694561,1782748247000,-300.0,0.0003376,2]
[426694571,1782748247000,-300.0,0.0003376,2]
[426694562,1782748247000,-300.0,0.0003376,2]
[426694560,1782748247000,-300.0,0.0003376,2]
[426694564,1782748247000,-300.0,0.0003376,2]
[426694568,1782748247000,-300.0,0.0003376,2]
[426694566,1782748247000,-300.0,0.0003376,2]
[426694565,1782748247000,-300.0,0.0003376,2]
[426694570,1782748247000,-300.0,0.0003376,2]
[426694567,1782748247000,-300.0,0.0003376,2]
[426694563,1782748247000,-302.16203863,0.0003376,2]
[426694574,1782748247000,-300.0,0.0003376,2]
[426694581,1782748247000,-576.43989485,0.0003376,2]
[426694569,1782748247000,-300.0,0.0003376,2]
[426694579,1782748247000,-300.0,0.0003376,2]
[426694577,1782748247000,-954.30228826,0.0003376,2]
[426694573,1782748247000,-300.0,0.0003376,2]
[426694575,1782748247000,-300.0,0.0003376,2]
[426694583,1782748247000,-311.22255108,0.0003376,2]
[426694578,1782748247000,-1807.30940739,0.0003376,2]
[426694582,1782748247000,-300.0,0.0003376,2]
[426694572,1782748247000,-345.7536,0.0003376,2]
[426694580,1782748247000,-300.0,0.0003376,2]
[426694654,1782748248000,-300.0,0.0003376,2]
[426694649,1782748248000,-300.0,0.0003376,2]
[426694656,1782748248000,-954.30228826,0.0003376,2]
[426694657,1782748248000,-1807.30940739,0.0003376,2]
[426694647,1782748248000,-300.0,0.0003376,2]
[426694639,1782748248000,-300.0,0.0003376,2]
[426694646,1782748248000,-300.0,0.0003376,2]
[426694642,1782748248000,-302.16203863,0.0003376,2]
[426694641,1782748248000,-300.0,0.0003376,2]
[426694643,1782748248000,-300.0,0.0003376,2]
[426694651,1782748248000,-345.7536,0.0003376,2]
[426694648,1782748248000,-300.0,0.0003376,2]
[426694650,1782748248000,-300.0,0.0003376,2]
[426694665,1782748248000,-300.0,0.0003376,2]
[426694652,1782748248000,-300.0,0.0003376,2]
[426694655,1782748248000,-300.0,0.0003376,2]
[426694659,1782748248000,-300.0,0.0003376,2]
[426694660,1782748248000,-576.43989485,0.0003376,2]
[426694658,1782748248000,-300.0,0.0003376,2]
[426694661,1782748248000,-300.0,0.0003376,2]
[426694669,1782748248000,-300.0,0.0003376,2]
[426694662,1782748248000,-311.22255108,0.0003376,2]
[426694666,1782748248000,-300.0,0.0003376,2]
[426694668,1782748248000,-300.0,0.0003376,2]
[426694667,1782748248000,-300.0,0.0003376,2]
[426694638,1782748248000,-730.12015411,0.0003376,2]
[426694653,1782748248000,-300.0,0.0003376,2]
[426694637,1782748248000,-300.0,0.0003376,2]
[426694611,1782748248000,-300.0,0.0003376,2]
[426694640,1782748248000,-300.0,0.0003376,2]
[426694612,1782748248000,-300.0,0.0003376,2]
[426694620,1782748248000,-300.0,0.0003376,2]
[426694618,1782748248000,-300.0,0.0003376,2]
[426694663,1782748248000,-300.0,0.0003376,2]
[426694619,1782748248000,-300.0,0.0003376,2]
[426694613,1782748248000,-300.0,0.0003376,2]
[426694615,1782748248000,-300.0,0.0003376,2]
[426694616,1782748248000,-300.0,0.0003376,2]
[426694617,1782748248000,-300.0,0.0003376,2]
[426694614,1782748248000,-300.0,0.0003376,2]